bitfinex-derivatives/quotes_BNBF0:USTF0_20230831
["timestamp","ask_amount","ask_price","bid_price","bid_amount"]
[1693512293843,0.07549905,217.2,216.94,0.18126165]
[1693512294042,0.07549905,217.2,216.95,0.18126165]
[1693512294244,0.07549905,217.2,216.9,0.18126165]
[1693512294544,0.07549905,217.21,216.91,0.18126574]
[1693512294842,0.07549905,217.21,216.92,0.18126574]
[1693512295042,0.07549905,217.21,216.88,0.18126574]
[1693512295342,0.07549905,217.21,216.89,0.18126574]
[1693512295542,0.07549905,217.21,216.88,0.18126574]
[1693512295842,0.07549905,217.21,216.89,0.18126574]
[1693512296037,0.07549905,217.21,216.88,0.18126574]
[1693512296246,0.07549905,217.21,216.89,0.18126574]
[1693512296450,0.07549905,217.22,216.88,0.18126574]
[1693512296645,0.07549905,217.22,216.89,0.18126574]
[1693512296845,0.07549905,217.22,216.87,0.18126574]
[1693512299442,0.07549905,217.23,216.87,0.18126574]
[1693512299646,0.07549905,217.23,216.86,0.18126574]
[1693512299947,0.07549905,217.23,216.87,0.18126574]
[1693512300646,0.07549905,217.23,216.86,0.18126574]
[1693512300841,0.07549905,217.23,216.87,0.18126574]
[1693512301045,0.07549905,217.23,216.86,0.18126574]
[1693512301341,0.07549905,217.23,216.85,0.0753065]
[1693512301342,0.07549905,217.23,216.87,0.18126574]
[1693512301541,0.07549905,217.23,216.86,0.18126574]
[1693512301747,0.07549905,217.23,216.87,0.18126574]
[1693512301946,0.07549905,217.23,216.86,0.18126574]
[1693512302146,0.07549905,217.23,216.88,0.18126574]
[1693512302348,0.07549905,217.23,216.89,0.18126574]
[1693512302649,0.07549905,217.23,216.9,0.18126574]
[1693512302854,0.07549905,217.23,216.85,0.18126574]
[1693512303148,1.00665401,217.3,216.86,0.18126574]
[1693512303149,0.07549905,217.22,216.86,0.18126574]
[1693512303344,0.07549905,217.22,216.85,0.18126574]
[1693512303545,0.07549905,217.22,216.86,0.18126574]
[1693512303745,0.07549905,217.22,216.84,0.18126574]
[1693512303945,0.07549905,217.22,216.85,0.18126574]
[1693512304146,0.07549905,217.22,216.84,0.18126574]
[1693512304346,0.07549905,217.22,216.85,0.18126574]
[1693512304645,0.07549905,217.22,216.86,0.18126574]
[1693512304844,0.07549905,217.22,216.84,0.18126574]
[1693512305047,0.07549905,217.22,216.85,0.18126574]
[1693512305246,0.07549905,217.22,216.84,0.18126574]
[1693512305447,0.07549905,217.22,216.85,0.18126574]
[1693512305644,0.07549905,217.22,216.84,0.18126574]
[1693512305851,0.07549905,217.22,216.85,0.18126574]
[1693512306045,0.07549905,217.22,216.84,0.18126574]
[1693512306252,0.07549905,217.23,216.85,0.18126574]
[1693512307447,0.07549905,217.22,216.86,0.18126574]
[1693512307649,0.07549905,217.22,216.87,0.18126574]
[1693512307851,0.07549905,217.22,216.88,0.18126574]
[1693512308049,0.07549905,217.22,216.89,0.18126574]
[1693512308252,0.07549905,217.23,216.84,0.18126574]
[1693512308453,0.07549905,217.23,216.85,0.18126574]
[1693512309460,0.07549905,217.22,216.85,0.18126574]
[1693512309658,0.07549905,217.23,216.85,0.18126574]
[1693512310255,0.07549905,217.23,216.85,0.25657224]
[1693512310461,0.07549905,217.23,216.86,0.18126574]
[1693512312966,0.07549905,217.23,216.86,0.25657224]
[1693512313167,0.07549905,217.23,216.87,0.18126574]
[1693512313368,0.07549905,217.23,216.88,0.18126574]
[1693512313670,0.07549905,217.23,216.89,0.18126574]
[1693512313868,0.07549905,217.23,216.9,0.18126574]
[1693512314068,0.07549905,217.23,216.91,0.18126574]
[1693512314268,0.07549905,217.23,216.92,0.18126574]
[1693512314461,0.07549905,217.23,216.93,0.18126574]
[1693512314665,0.07549905,217.23,216.94,0.18126574]
[1693512314868,0.07549905,217.23,216.95,0.18126574]
[1693512315167,0.07549905,217.23,216.96,0.18126574]
[1693512315368,0.07549905,217.23,216.87,0.0753065]
[1693512315564,0.07549905,217.23,216.88,0.18108012]
[1693512316470,0.07549905,217.23,216.88,0.25638662]
[1693512316769,0.07549905,217.23,216.89,0.18108012]
[1693512317172,0.07549905,217.24,216.89,0.18108012]
[1693512317364,1.00665401,217.31,216.89,0.18108012]
[1693512317365,0.07549905,217.23,216.89,0.25638662]
[1693512317567,0.07549905,217.23,216.9,0.18108012]
[1693512320472,0.07549905,217.22,216.9,0.25638662]
[1693512320669,0.07549905,217.22,216.91,0.18108012]
[1693512321166,0.07549905,217.23,216.91,0.18108012]
[1693512321372,0.07549905,217.22,216.91,0.18108012]
[1693512321974,0.07549905,217.22,216.91,0.25638662]
[1693512322175,0.07549905,217.22,216.92,0.18108012]
[1693512323374,0.07549905,217.21,216.91,0.25638662]
[1693512323567,0.07549905,217.21,216.92,0.18108012]
[1693512324476,0.07549905,217.2,216.92,0.25638662]
[1693512324677,0.07549905,217.2,216.93,0.18108012]
[1693512325477,0.07549905,217.19,216.93,0.25638662]
[1693512325679,0.07549905,217.19,216.94,0.18108012]
[1693512326280,0.07549905,217.18,216.94,0.18108012]
[1693512326675,0.07549905,217.18,216.93,0.18108012]
[1693512326879,0.07549905,217.18,216.94,0.18108012]
[1693512327074,0.07549905,217.18,216.86,0.150613]
[1693512327075,0.07549905,217.18,216.93,0.25638662]
[1693512327382,0.07549905,217.18,216.94,0.18108012]
[1693512327580,0.07549905,217.18,216.93,0.18108012]
[1693512327881,0.07549905,217.18,216.94,0.18108012]
[1693512328182,0.07549905,217.18,216.95,0.18108012]
[1693512328380,0.07549905,217.18,216.96,0.18108012]
[1693512328679,0.07549905,217.18,216.92,0.0753065]
[1693512328882,0.07549905,217.18,216.93,0.18105116]
[1693512330279,0.07549905,217.2,216.94,0.0753065]
[1693512330479,0.503327,217.25,216.8,0.50204333]
[1693512330480,0.07549905,217.25,216.99,0.0753065]
[1693512330685,2.51556147,217.38,216.99,0.0753065]
[1693512330686,0.07549905,217.28,216.99,0.0753065]
[1693512330885,0.07549905,217.28,217.0,0.18105116]
[1693512331586,0.07549905,217.29,217.0,0.18105116]
[1693512331884,0.07549905,217.29,217.01,0.18105116]
[1693512332079,0.07549905,217.29,216.98,0.18105116]
[1693512332282,0.07549905,217.3,216.98,0.18105116]
[1693512332787,0.07549905,217.29,216.96,0.18105116]
[1693512333082,0.07549905,217.28,216.97,0.18105116]
[1693512333283,0.07549905,217.28,216.94,0.18105116]
[1693512333583,0.07549905,217.28,216.95,0.18105116]
[1693512333784,0.07549905,217.28,216.94,0.18105116]
[1693512333977,0.07549905,217.28,216.96,0.18105116]
[1693512334180,0.07549905,217.28,216.97,0.18105116]
[1693512334382,0.07549905,217.28,216.94,0.18105116]
[1693512334683,0.07549905,217.28,216.95,0.18105116]
[1693512334883,0.07549905,217.28,216.93,0.18105116]
[1693512335082,0.07549905,217.28,216.94,0.18105116]
[1693512335283,0.07549905,217.28,216.93,0.18105116]
[1693512335483,0.07549905,217.28,216.94,0.18105116]
[1693512335685,0.07549905,217.28,216.95,0.18105116]
[1693512335886,0.07549905,217.28,216.93,0.18105116]
[1693512336082,0.07549905,217.28,216.94,0.18105116]
[1693512336276,0.07549905,217.28,216.93,0.18105116]
[1693512336483,0.07549905,217.28,216.94,0.18105116]
[1693512336684,0.07549905,217.28,216.95,0.18105116]
[1693512336883,0.07549905,217.28,216.93,0.18105116]
[1693512337083,0.07549905,217.28,216.96,0.18105116]
[1693512337286,0.07549905,217.28,216.97,0.18105116]
[1693512337487,0.07549905,217.29,216.93,0.18105116]
[1693512338588,0.07549905,217.24,216.93,0.18105116]
[1693512338784,0.07549905,217.24,216.88,0.18105116]
[1693512338984,0.07549905,217.24,216.89,0.18105116]
[1693512339185,0.07549905,217.24,216.88,0.18105116]
[1693512339787,0.07549905,217.24,216.88,0.25635766]
[1693512339985,0.07549905,217.24,216.89,0.18105116]
[1693512341691,0.07549905,217.23,216.89,0.18105116]
[1693512341991,0.07549905,217.23,216.9,0.18105116]
[1693512342188,0.07549905,217.22,216.88,0.18105116]
[1693512342391,2.51556147,217.35,216.89,0.18105116]
[1693512342392,0.07549905,217.21,216.89,0.18105116]
[1693512342791,0.07549905,217.21,216.85,0.0753065]
[1693512342792,0.07549905,217.21,216.9,0.18105116]
[1693512342992,0.07549905,217.21,216.86,0.18105116]
[1693512343193,0.07549905,217.21,216.87,0.18105116]
[1693512343488,0.07549905,217.21,216.88,0.18105116]
[1693512343689,0.07549905,217.16,216.86,0.18105116]
[1693512343889,0.07549905,217.16,216.82,0.18105116]
[1693512344191,0.07549905,217.16,216.81,0.0753065]
[1693512344192,0.07549905,217.16,216.83,0.18105116]
[1693512344392,0.07549905,217.16,216.82,0.18105116]
[1693512344585,0.07549905,217.17,216.83,0.18105116]
[1693512344785,0.07549905,217.18,216.81,0.25635766]
[1693512344991,0.07549905,217.17,216.82,0.18105116]
[1693512345594,1.00665401,217.25,216.74,0.150613]
[1693512345595,0.07549905,217.18,216.83,0.18105116]
[1693512345792,0.07549905,217.18,216.81,0.0753065]
[1693512345793,0.07549905,217.18,216.82,0.18105116]
[1693512346093,0.07549905,217.17,216.82,0.18105116]
[1693512346286,0.07549905,217.17,216.8,0.0753065]
[1693512346287,0.07549905,217.17,216.81,0.18105116]
[1693512346486,0.07549905,217.18,216.82,0.18105116]
[1693512346690,0.07549905,217.18,216.83,0.18105116]
[1693512346992,0.07549905,217.18,216.84,0.18105116]
[1693512347191,0.07549905,217.18,216.81,0.18105116]
[1693512347391,0.07549905,217.18,216.82,0.18105116]
[1693512347592,0.07549905,217.19,216.81,0.18105116]
[1693512347792,0.07549905,217.19,216.82,0.18105116]
[1693512347992,0.07549905,217.19,216.8,0.18105116]
[1693512348293,0.07549905,217.18,216.81,0.18105116]
[1693512348693,0.07549905,217.18,216.82,0.18105116]
[1693512348893,0.07549905,217.17,216.79,0.18105116]
[1693512349195,0.07549905,217.17,216.8,0.18105116]
[1693512349395,0.07549905,217.18,216.78,0.18105116]
[1693512349597,0.07549905,217.18,216.79,0.18105116]
[1693512349795,0.07549905,217.18,216.77,0.18105116]
[1693512349996,0.07549905,217.18,216.78,0.18105116]
[1693512350291,0.07549905,217.18,216.79,0.18105116]
[1693512350495,0.07549905,217.19,216.78,0.18105116]
[1693512350695,0.07549905,217.19,216.79,0.18105116]
[1693512350897,0.07549905,217.18,216.77,0.18105116]
[1693512351096,0.07549905,217.18,216.78,0.18105116]
[1693512351396,0.07549905,217.18,216.79,0.18105116]
[1693512351691,0.07549905,217.17,216.8,0.18105116]
[1693512351896,0.07549905,217.17,216.74,0.0753065]
[1693512351897,0.07549905,217.17,216.75,0.18105116]
[1693512352097,0.07549905,217.18,216.81,0.18105116]
[1693512352291,0.07549905,217.18,216.74,0.0753065]
[1693512352292,0.07549905,217.18,216.82,0.18105116]
[1693512352498,0.07549905,217.18,216.75,0.18105116]
[1693512352792,0.07549905,217.19,216.76,0.18105116]
[1693512352997,0.07549905,217.19,216.77,0.18105116]
[1693512353397,0.07549905,217.19,216.78,0.18105116]
[1693512353596,0.07549905,217.19,216.74,0.18105116]
[1693512353796,0.07549905,217.19,216.75,0.18105116]
[1693512353997,0.07549905,217.19,216.72,0.0753065]
[1693512353998,0.07549905,217.19,216.73,0.18105116]
[1693512354595,0.1509981,217.22,216.73,0.18105116]
[1693512354596,0.07549905,217.2,216.73,0.18105116]
[1693512354794,0.84670904,217.19,216.73,0.18105116]
[1693512355698,0.84670904,217.19,216.72,0.18105116]
[1693512355898,0.84670904,217.19,216.73,0.18105116]
[1693512356193,0.84670904,217.19,216.72,0.18105116]
[1693512356395,0.84670904,217.19,216.73,0.18105116]
[1693512356599,0.84670904,217.19,216.72,0.18105116]
[1693512356898,0.07549905,217.21,216.73,0.18105116]
[1693512357100,0.846704,217.2,216.74,0.18105116]
[1693512357399,0.846704,217.2,216.75,0.18105116]
[1693512357600,0.846704,217.2,216.72,0.18105116]
[1693512357800,0.846704,217.2,216.73,0.18105116]
[1693512358000,0.846704,217.2,216.72,0.18105116]
[1693512358200,0.846704,217.2,216.73,0.18105116]
[1693512358401,0.846704,217.2,216.72,0.18105116]
[1693512358602,0.846704,217.2,216.73,0.18105116]
[1693512358796,0.846704,217.2,216.71,0.18105116]
[1693512359601,0.846704,217.21,216.71,0.18105116]
[1693512360803,0.846704,217.21,216.7,0.18105116]
[1693512362805,0.846704,217.22,216.7,0.18105116]
[1693512363006,0.846704,217.21,216.7,0.18105116]
[1693512363205,0.846704,217.22,216.7,0.18105116]
[1693512363406,0.846704,217.21,216.7,0.18105116]
[1693512363606,0.07549905,217.23,216.7,0.18105116]
[1693512363607,0.846704,217.22,216.7,0.18105116]
[1693512363800,0.846704,217.21,216.69,0.18105116]
[1693512364005,0.07549905,217.23,216.69,0.18105116]
[1693512364006,0.07549905,217.18,216.69,0.18105116]
[1693512364202,0.07549905,217.16,216.69,0.18105116]
[1693512364405,0.92220305,217.15,216.7,0.18105116]
[1693512364710,0.846704,217.14,216.71,0.18105116]
[1693512364907,0.846704,217.15,216.59,0.18105116]
[1693512365109,0.846704,217.14,216.6,0.18105116]
[1693512365408,0.846704,217.14,216.61,0.18105116]
[1693512365810,0.846704,217.14,216.62,0.18105116]
[1693512366003,0.846704,217.15,216.58,0.18105116]
[1693512366203,0.07549905,217.16,216.57,0.0753065]
[1693512366204,0.846704,217.13,216.63,0.18105116]
[1693512366403,0.846704,217.14,216.59,0.18105116]
[1693512366611,0.846704,217.13,216.64,0.18105116]
[1693512366810,0.846704,217.15,216.65,0.18105116]
[1693512367011,0.846704,217.14,216.58,0.18105116]
[1693512367204,0.846704,217.15,216.59,0.18105116]
[1693512367407,0.92220305,217.15,216.59,0.18105116]
[1693512367606,0.846704,217.14,216.59,0.18105116]
[1693512368004,0.846704,217.14,216.58,0.18105116]
[1693512368206,0.846704,217.15,216.6,0.18105116]
[1693512368405,0.07549905,217.16,216.59,0.18105116]
[1693512368406,0.846704,217.14,216.59,0.18105116]
[1693512368606,0.92220305,217.15,216.6,0.18105116]
[1693512368805,0.846704,217.14,216.59,0.18105116]
[1693512369007,0.846704,217.13,216.6,0.18105116]
[1693512369229,0.846704,217.12,216.61,0.18105116]
[1693512369411,0.846704,217.15,216.61,0.18105116]
[1693512369609,0.846704,217.15,216.62,0.18105116]
[1693512369811,0.846704,217.15,216.59,0.18105116]
[1693512370012,0.846704,217.15,216.6,0.18105116]
[1693512370212,0.846704,217.15,216.59,0.18105116]
[1693512370510,0.92220305,217.15,216.6,0.18105116]
[1693512370706,0.846704,217.14,216.6,0.18105116]
[1693512372310,0.92220305,217.14,216.61,0.0753065]
[1693512372514,0.846704,217.13,216.62,0.18105116]
[1693512373316,0.846704,217.13,216.61,0.25635766]
[1693512373516,0.07549905,217.12,216.62,0.25635766]
[1693512373716,0.846704,217.11,216.63,0.18105116]
[1693512374519,0.92220305,217.11,216.63,0.25635766]
[1693512374722,0.846704,217.1,216.64,0.18105116]
[1693512374920,0.846704,217.1,216.65,0.18105116]
[1693512375120,0.846704,217.1,216.66,0.18105116]
[1693512375319,0.846704,217.1,216.67,0.18105116]
[1693512375517,0.92220305,217.1,216.63,0.25635766]
[1693512375821,0.07549905,217.1,216.64,0.25635766]
[1693512376020,0.1509981,217.13,216.65,0.18105116]
[1693512376021,0.07549905,217.11,216.65,0.18105116]
[1693512376321,0.84699364,217.1,216.65,0.18105116]
[1693512377424,0.84699364,217.1,216.65,0.25635766]
[1693512377425,0.92249269,217.1,216.65,0.25635766]
[1693512377621,0.07549905,217.1,216.66,0.18105116]
[1693512378523,0.07549905,217.09,216.66,0.18105116]
[1693512378718,0.07549905,217.08,216.66,0.18105116]
[1693512380526,0.07549905,217.07,216.66,0.18105116]
[1693512380729,0.07549905,217.07,216.65,0.18105116]
[1693512380923,0.07549905,217.07,216.66,0.18105116]
[1693512381128,0.07549905,217.07,216.65,0.18105116]
[1693512381427,0.07549905,217.06,216.66,0.18105116]
[1693512381622,0.07549905,217.06,216.65,0.18105116]
[1693512381828,0.07549905,217.06,216.57,0.150613]
[1693512381829,0.07549905,217.06,216.66,0.18105116]
[1693512382025,0.07549905,217.06,216.64,0.18105116]
[1693512382222,0.07549905,217.06,216.65,0.18105116]
[1693512382423,0.07549905,217.05,216.64,0.18105116]
[1693512383329,0.07549905,217.05,216.64,0.25635766]
[1693512383530,0.503327,217.1,216.65,0.18105116]
[1693512383531,0.07549905,217.06,216.65,0.18105116]
[1693512384431,0.07549905,217.05,216.65,0.18105116]
[1693512386834,0.07549905,217.01,216.65,0.18105116]
[1693512387036,0.07549905,217.0,216.61,0.18105116]
[1693512387334,0.07549905,217.0,216.62,0.18105116]
[1693512387529,0.07549905,217.0,216.6,0.18105116]
[1693512387928,0.07549905,217.0,216.59,0.18105116]
[1693512388331,0.07549905,216.99,216.59,0.18105116]
[1693512388835,2.51556147,217.14,216.51,0.150613]
[1693512388836,0.07549905,217.0,216.6,0.18105116]
[1693512389137,0.07549905,217.0,216.61,0.18105116]
[1693512389331,0.07549905,217.0,216.62,0.18105116]
[1693512389633,0.07549905,217.0,216.34,1.00408667]
[1693512389833,0.07518393,217.0,216.57,0.07484404]
[1693512390137,0.07518393,217.0,216.58,0.18105116]
[1693512390333,0.07518393,216.99,216.58,0.18105116]
[1693512390732,0.15036786,217.02,216.58,0.18105116]
[1693512390733,0.07518393,217.0,216.58,0.18105116]
[1693512391135,0.07518393,217.01,216.58,0.18105116]
[1693512391638,0.07518393,217.0,216.58,0.2558952]
[1693512391939,0.07518393,217.02,216.59,0.2558952]
[1693512392131,0.07518393,217.02,216.6,0.18105116]
[1693512393335,0.07518393,217.07,216.64,0.07484404]
[1693512393637,0.07518393,217.04,216.65,0.18105116]
[1693512394039,0.07518393,217.04,216.66,0.18105116]
[1693512394240,0.07518393,217.04,216.63,0.18105116]
[1693512394439,0.07518393,217.03,216.63,0.18105116]
[1693512394634,0.07518393,217.02,216.63,0.18105116]
[1693512395438,0.07518393,217.03,216.63,0.18105116]
[1693512395638,0.07518393,217.05,216.64,0.07484404]
[1693512395839,0.07518393,217.05,216.65,0.2558952]
[1693512396142,0.07518393,217.04,216.66,0.18105116]
[1693512396440,0.07518393,217.05,216.66,0.18105116]
[1693512397336,0.07518393,217.04,216.66,0.2558952]
[1693512397536,0.07518393,217.04,216.67,0.18105116]
[1693512397739,0.07518393,217.03,216.67,0.18105116]
[1693512397935,0.07518393,217.04,216.67,0.18105116]
[1693512398135,0.07518393,217.04,216.67,0.2558952]
[1693512398540,0.07518393,217.04,216.68,0.18105116]
[1693512398741,0.07518393,217.03,216.69,0.07484404]
[1693512398942,0.07518393,217.03,216.7,0.18105116]
[1693512399441,0.07518393,217.04,216.7,0.2558952]
[1693512399643,0.07518393,217.04,216.71,0.18105116]
[1693512402339,0.07518393,217.05,216.71,0.2558952]
[1693512402644,0.07518393,217.06,216.72,0.2558952]
[1693512402845,0.07518393,217.06,216.73,0.18105116]
[1693512404744,0.07518393,217.07,216.73,0.18105116]
[1693512405745,0.07518393,217.13,216.76,0.07484404]
[1693512405941,0.07518393,217.13,216.77,0.18105116]
[1693512406340,0.07518393,217.12,216.77,0.18105116]
[1693512406544,0.07518393,217.13,216.77,0.18105116]
[1693512406745,0.07518393,217.13,216.76,0.18105116]
[1693512406945,0.07518393,217.13,216.77,0.18105116]
[1693512407140,0.07518393,217.13,216.76,0.18105116]
[1693512407346,0.07518393,217.13,216.77,0.18105116]
[1693512407546,0.07518393,217.13,216.76,0.18105116]
[1693512407846,0.07518393,217.14,216.78,0.18105116]
[1693512408746,0.07518393,217.14,216.79,0.18105116]
[1693512408946,0.07518393,217.14,216.73,0.07484404]
[1693512409145,0.07518393,217.14,216.74,0.2558952]
[1693512409347,0.07518393,217.14,216.75,0.18105116]
[1693512409547,0.07518393,217.15,216.75,0.2558952]
[1693512409750,0.07518393,217.16,216.76,0.18105116]
[1693512409950,0.07518393,217.16,216.75,0.18105116]
[1693512410146,0.07518393,217.16,216.76,0.18105116]
[1693512410345,0.07518393,217.16,216.75,0.18105116]
[1693512410647,0.07518393,217.16,216.76,0.18105116]
[1693512410847,0.07518393,217.17,216.77,0.18105116]
[1693512411143,0.07518393,217.17,216.78,0.18105116]
[1693512411349,0.07518393,217.17,216.74,0.18105116]
[1693512411648,0.07518393,217.17,216.75,0.18105116]
[1693512411849,0.07518393,217.17,216.74,0.18105116]
[1693512412753,0.07518393,217.18,216.74,0.18105116]
[1693512412943,0.07518393,217.18,216.72,0.07484404]
[1693512412944,0.07518393,217.18,216.73,0.18105116]
[1693512413751,0.07518393,217.19,216.73,0.18105116]
[1693512413953,0.07518393,217.2,216.73,0.2558952]
[1693512414147,0.07518393,217.2,216.73,0.07484404]
[1693512414451,0.84666524,217.19,216.74,0.18105116]
[1693512415251,0.84666524,217.19,216.75,0.18105116]
[1693512415547,0.84666524,217.19,216.76,0.18105116]
[1693512415752,0.84666524,217.19,216.74,0.18105116]
[1693512415953,0.84666524,217.2,216.75,0.18105116]
[1693512416154,0.84667294,217.19,216.73,0.18105116]
[1693512416354,0.84667294,217.2,216.74,0.18105116]
[1693512416654,0.8466729,217.19,216.75,0.18105116]
[1693512416957,0.07518393,217.21,216.76,0.18105116]
[1693512417248,0.8466728,217.2,216.73,0.18105116]
[1693512417454,0.8466728,217.2,216.77,0.18105116]
[1693512417650,0.8466728,217.2,216.78,0.18105116]
[1693512417850,0.8466728,217.2,216.79,0.18105116]
[1693512418053,0.8466728,217.21,216.72,0.18105116]
[1693512418253,0.8466728,217.21,216.73,0.18105116]
[1693512418549,0.8466728,217.21,216.72,0.18105116]
[1693512418750,0.8466728,217.21,216.74,0.18105116]
[1693512418956,0.8466728,217.21,216.75,0.18105116]
[1693512419256,0.8466728,217.21,216.76,0.18105116]
[1693512419555,0.8466728,217.21,216.77,0.18105116]
[1693512419756,0.8466728,217.21,216.72,0.18105116]
[1693512419954,0.8466728,217.21,216.73,0.18105116]
[1693512420253,0.8466728,217.21,216.74,0.18105116]
[1693512420454,0.8466728,217.21,216.72,0.18105116]
[1693512420650,0.8466728,217.21,216.73,0.18105116]
[1693512420854,1.00245243,217.3,216.72,0.18105116]
[1693512420855,0.92185673,217.22,216.72,0.18105116]
[1693512421055,0.8466728,217.21,216.73,0.18105116]
[1693512421352,0.8466728,217.21,216.74,0.18105116]
[1693512421548,0.8466728,217.21,216.71,0.18105116]
[1693512421752,0.8466728,217.21,216.72,0.18105116]
[1693512421951,0.8466728,217.21,216.73,0.18105116]
[1693512422149,0.8466728,217.21,216.74,0.18105116]
[1693512422353,0.8466728,217.21,216.71,0.18105116]
[1693512422754,0.92185673,217.21,216.71,0.18105116]
[1693512422955,0.8466728,217.2,216.71,0.18105116]
[1693512423958,0.8466728,217.19,216.71,0.2558952]
[1693512424159,0.8466728,217.19,216.72,0.18105116]
[1693512424359,0.8466728,217.19,216.72,0.2558952]
[1693512424559,0.8466728,217.2,216.73,0.18105116]
[1693512424859,0.07518393,217.21,216.72,0.07484404]
[1693512425055,0.92188607,217.2,216.73,0.18121268]
[1693512425255,0.84670214,217.19,216.72,0.18121268]
[1693512425456,0.84670214,217.19,216.73,0.18121268]
[1693512425658,0.92188607,217.19,216.74,0.18121268]
[1693512425855,0.84670214,217.18,216.73,0.18121268]
[1693512426863,0.07518393,217.17,216.74,0.07484404]
[1693512427063,0.07518393,217.17,216.75,0.18121268]
[1693512428064,0.07518393,217.16,216.75,0.18121268]
[1693512428662,0.07518393,217.16,216.74,0.18121268]
[1693512428964,0.07518393,217.16,216.75,0.18121268]
[1693512429766,0.07518393,217.15,216.75,0.25605672]
[1693512429968,0.07518393,217.15,216.76,0.18121268]
[1693512431262,0.07518393,217.14,216.76,0.18121268]
[1693512431767,0.07518393,217.13,216.77,0.18121268]
[1693512431968,0.07518393,217.13,216.76,0.18121268]
[1693512432167,0.07518393,217.13,216.77,0.18121268]
[1693512432765,0.07518393,217.12,216.77,0.25605672]
[1693512432965,0.07518393,217.12,216.78,0.18121268]
[1693512433969,0.07518393,217.11,216.78,0.18121268]
[1693512434165,0.07518393,217.12,216.78,0.18121268]
[1693512434365,0.07518393,217.11,216.78,0.18121268]
[1693512434563,0.07518393,217.11,216.78,0.25605672]
[1693512434765,0.07518393,217.1,216.79,0.18121268]
[1693512434966,0.07518393,217.11,216.8,0.18121268]
[1693512435164,0.07518393,217.11,216.79,0.18121268]
[1693512435464,0.07518393,217.11,216.8,0.18121268]
[1693512435667,0.07518393,217.1,216.79,0.25605672]
[1693512435866,0.07518393,217.09,216.8,0.18121268]
[1693512436667,1.00245243,217.16,216.78,0.07484404]
[1693512436668,0.07518393,217.08,216.79,0.18121268]
[1693512436866,0.07518393,217.06,216.79,0.25605672]
[1693512437173,0.07518393,217.06,216.8,0.18121268]
[1693512438172,0.07518393,217.07,216.8,0.18121268]
[1693512438771,0.07518393,217.05,216.81,0.07484404]
[1693512439076,0.07518393,217.05,216.82,0.18121268]
[1693512440678,0.07518393,217.05,216.81,0.18121268]
[1693512444780,0.07518393,217.06,216.81,0.18121268]
[1693512447382,0.07518393,217.05,216.81,0.18121268]
[1693512447582,0.07518393,217.05,216.8,0.18121268]
[1693512448381,0.07518393,217.06,216.8,0.18121268]
[1693512450586,0.07518393,217.06,216.8,0.25605672]
[1693512450786,0.07518393,217.06,216.81,0.18121268]
[1693512451486,0.07518393,217.06,216.8,0.18121268]
[1693512451686,0.07518393,217.06,216.8,0.25605672]
[1693512451886,0.07518393,217.06,216.81,0.18121268]
[1693512453081,0.07518393,217.07,216.81,0.18121268]
[1693512453482,0.07518393,217.07,216.81,0.25605672]
[1693512453686,0.07518393,217.07,216.82,0.18121268]
[1693512457788,0.07518393,217.07,216.82,0.25605672]
[1693512457988,0.07518393,217.07,216.83,0.18121268]
[1693512458288,0.07518393,217.07,216.84,0.18121268]
[1693512458489,0.07518393,217.07,216.82,0.18121268]
[1693512458788,0.07518393,217.07,216.83,0.18121268]
[1693512458989,0.07518393,217.06,216.83,0.18121268]
[1693512459288,0.15036786,217.09,216.83,0.18121268]
[1693512459289,0.07518393,217.07,216.83,0.18121268]
[1693512459884,0.07518393,217.07,216.83,0.25605672]
[1693512460088,0.07518393,217.07,216.84,0.18121268]
[1693512460588,0.07518393,217.07,216.85,0.18121268]
[1693512460790,0.07518393,217.06,216.83,0.18121268]
[1693512460988,0.07518393,217.06,216.84,0.18188467]
[1693512461185,0.07518393,217.06,216.81,0.07484404]
[1693512461383,0.07518393,217.01,216.77,0.07484404]
[1693512461584,0.07518393,217.0,216.78,0.18216005]
[1693512461788,0.07518393,217.0,216.77,0.18216005]
[1693512462090,0.07518393,217.02,216.78,0.18216005]
[1693512462393,0.07518393,217.02,216.79,0.18216005]
[1693512462691,0.07518393,217.02,216.8,0.18216005]
[1693512462989,0.07518393,217.03,216.75,0.07484404]
[1693512463189,0.07518393,217.03,216.76,0.18216381]
[1693512463590,0.07518393,217.03,216.75,0.18216381]
[1693512463890,0.07518393,217.03,216.76,0.18216381]
[1693512464489,0.07518393,217.04,216.76,0.25700785]
[1693512464787,0.07518393,217.05,216.77,0.25700785]
[1693512464995,0.07518393,217.05,216.78,0.18216381]
[1693512466985,0.07518393,217.05,216.77,0.18216381]
[1693512467191,0.07518393,217.05,216.76,0.07484404]
[1693512467192,0.07518393,217.05,216.78,0.18216381]
[1693512467389,0.07518393,217.05,216.79,0.18216381]
[1693512467590,0.07518393,217.05,216.77,0.18216381]
[1693512467790,0.07518393,217.05,216.78,0.18216381]
[1693512467989,0.07518393,217.05,216.77,0.18216381]
[1693512468186,0.07518393,217.05,216.78,0.18216381]
[1693512468386,0.07518393,217.05,216.79,0.18216381]
[1693512468689,0.07518393,217.05,216.8,0.18216381]
[1693512468991,0.07518393,217.05,216.81,0.18216381]
[1693512469191,0.07518393,217.05,216.76,0.07484404]
[1693512469192,0.07518393,217.05,216.77,0.18216381]